Cogmind - Beta 13 @@@ ROGUE MODE // 2024.04.07 @ 20:38:21 Player: JunkerBernd Result: Self-destructed Performance ------------- Evolutions (1) 500 Regions Visited (2) 400 Robots Destroyed (22) 110 Value Destroyed (426) 426 Prototype IDs (0) 0 Alien Tech Used (0) 0 Bonus (0) 0 TOTAL SCORE: 1436 Bonus ------- None Cogmind --------- Core Integrity 385/400 Matter 123/300 Energy 47/265 System Corruption 0% Temperature Cool (0) Movement Core (550) Ox10 Location -9/Materials Parts ------- > --- POWER (1) -------- Improved Ion Engine > --- PROPULSION (4) --- (None) > --- UTILITY (2) ------ Large Storage Unit Recalibrator > --- WEAPON (2) ------- Autogun > --- INVENTORY (15) --- Ion Engine Light Treads Light Treads Light Treads Light Treads Light Treads Light Treads Light Treads Light Treads Aluminum Leg Wheel Medium Storage Unit EM Pulse Gun Medium Laser Heavy Assault Rifle Peak State ------------ > --- POWER ------------ Improved Ion Engine > --- PROPULSION ------- Light Treads Light Treads Light Treads Light Treads > --- UTILITY ---------- Medium Storage Unit Recalibrator > --- WEAPON ----------- Autogun Grenade Launcher > --- INVENTORY -------- Light Ion Engine Light Treads Aluminum Leg Aluminum Leg Wheel Large Storage Unit EM Pulse Gun Medium Laser Heavy Assault Rifle [Rating: 15] Favorites ----------- Power Ion Engine Engine Ion Engine Propulsion Light Treads Treads Light Treads Utility Small Storage Unit Device Recalibrator Storage Small Storage Unit Weapon Grenade Launcher Ballistic Gun Assault Rifle Launcher Grenade Launcher Build | -11 -10 -9 ------- Run | Yrd Mat Mat Slots Evolved 2 | . . 2 Power . | . . . Propulsion 2 | . . 2 Utility . | . . . Weapon . | . . . Parts Attached 18 | 6 2 10 Power 2 | 1 . 1 Engine 2 | 1 . 1 Core . | . . . Reactor . | . . . Propulsion 6 | 2 . 4 Treads 6 | 2 . 4 Leg . | . . . Wheel . | . . . Hover . | . . . Flight . | . . . Utility 5 | 1 1 3 Device 2 | . 1 1 Storage 3 | 1 . 2 Processor . | . . . Hackware . | . . . Protection . | . . . Artifact . | . . . Weapon 5 | 2 1 2 Energy Gun . | . . . Energy Cannon . | . . . Ballistic Gun 4 | 2 . 2 Ballistic Cannon . | . . . Launcher 1 | . 1 . Special Weapon . | . . . Impact Weapon . | . . . Slashing Weapon . | . . . Piercing Weapon . | . . . Special Melee Weapon . | . . . Unidentified Prototypes . | . . . Parts Lost 1 | . . 1 Power . | . . . Propulsion . | . . . Utility 1 | . . 1 Weapon . | . . . Highest Loss Streak 1 | . . 1 To Critical Strikes . | . . . Average Slot Usage (%) 86 | . 91 82 Engine 12 | . 14 11 Treads 29 | . 28 30 Device 6 | . 5 7 Storage 12 | . 14 11 Ballistic Gun 14 | . 19 11 Launcher 10 | . 8 11 Naked Turns . | . . . Heaviest Build 34 | 13 16 34 Greatest Support 80 | 40 40 80 Greatest Overweight (x) . | . . . Average Overweight (x) . | . . . Largest Inventory Capacity 15 | 8 8 15 Average Capacity 9 | 7 8 11 Most Carried 15 | 6 8 15 Average Carried 8 | 3 7 9 Final Capacity 15 | 8 8 15 Final Carried 15 | 6 8 15 Class Distribution -------------------- 86% | Mutant 13% | Scavenger-Mutant Dominant Class ---------------- Mutant | -10/Materials Mutant | -9/Materials Resources | -11 -10 -9 ----------- Run | Yrd Mat Mat Matter Collected 465 | 181 78 206 Remotely . | . . . Salvage Created 387 | . 135 252 Parts 41 | . 18 23 Haulers Intercepted 1 | . . 1 Recyclers Shooed 2 | . 1 1 Parts Field Recycled . | . . . Retrieved Matter . | . . . Parts Self-Destructed . | . . . Prevented . | . . . Kills | -11 -10 -9 ------- Run | Yrd Mat Mat Combat Hostiles Destroyed 10 | . 7 3 Guns 4 | . 2 2 AOE 6 | . 5 1 Classes Destroyed 9 | . 5 4 Worker 2 | . 1 1 Builder 4 | . 2 2 Tunneler 1 | . 1 . Hauler 1 | . . 1 Mechanic 1 | . . 1 Watcher 3 | . . 3 Swarmer 3 | . 3 . Grunt 4 | . 4 . Sentry 3 | . . 3 Best Kill Streak 8 | . 8 4 Combat Bots Only 5 | . 5 1 Max Kills in Single Turn 3 | . 2 3 Gunslinging . | . . . Exploded 1 | . 1 1 Melee . | . . . Uniques/NPCs Destroyed . | . . . Combat | -11 -10 -9 -------- Run | Yrd Mat Mat Hostile Shots Fired 58 | . 36 22 Missed 19 | . 14 5 Damage Taken 439 | . 190 249 Core 42 | . 27 15 Absorbed by Shields . | . . . Core Remaining (%) 94 | 100 89 . Volleys Fired 38 | . 18 20 Largest 2 | . 2 2 Hottest 53 | . 50 53 Shots Fired 65 | . 32 33 Gun 38 | . 18 20 Cannon . | . . . Launcher 27 | . 14 13 Special . | . . . Kinetic 38 | . 18 20 Thermal . | . . . Explosive 27 | . 14 13 Electromagnetic . | . . . Robot Hit Streak 7 | . 7 4 Robot Miss Streak 2 | . 2 2 Penetration Max . | . . . Secondary Targets . | . . . Shots Hit Robots 27 | . 15 12 Core Hits 46 | . 24 22 Critical Kills . | . . . Critical Parts Destroyed . | . . . Critical Strikes . | . . . Melee Attacks . | . . . Impact . | . . . Slashing . | . . . Piercing . | . . . Sneak Attacks . | . . . Combat Hostiles . | . . . Follow-up Attacks . | . . . Damage Inflicted 1314 | . 727 587 Guns 234 | . 97 137 Cannons . | . . . Explosions 1061 | . 622 439 Melee . | . . . Ramming 19 | . 8 11 Kinetic 234 | . 97 137 Thermal . | . . . Explosive 1061 | . 622 439 Electromagnetic . | . . . Impact . | . . . Slashing . | . . . Piercing . | . . . Highest Corruption . | . . . Average Corruption . | . . . Corruption Purged . | . . . Corruption Blocked . | . . . Overload Shots . | . . . Overflow Damage 25 | . . 25 Projectiles . | . . . Explosions 25 | . . 25 Melee . | . . . Knockbacks . | . . . Impact . | . . . Kinetic . | . . . Secondary . | . . . Self-Inflicted Damage 4 | . 4 . Shots 1 | . 1 . Rammed 6 | . 2 4 Targets Rammed 7 | . 3 4 Kicked . | . . . Crushed 1 | . 1 . Highest Temperature 34 | . 2 34 Average Temperature 10 | . 2 11 Received Heat Transfer 126 | . 36 90 Siege Activations . | . . . Robots Corrupted . | . . . Combat Hostiles . | . . . Parts Fried . | . . . Impact Corruptions . | . . . Robots Melted . | . . . Combat Hostiles . | . . . Parts Melted . | . . . Heat Transferred . | . . . Parts Sabotaged . | . . . Parts Stolen . | . . . Parts Stripped . | . . . Power Chain Reactions . | . . . Alert | -11 -10 -9 ------- Run | Yrd Mat Mat Peak Influence 377 | . 270 377 Initial 113 | . . 113 Average 160 | . 86 258 Maximum Alert Level 1 | . 1 1 Low Security (%) 58 | 100 75 35 Level 1 41 | . 24 64 Level 2 . | . . . Level 3 . | . . . Level 4 . | . . . Level 5 . | . . . High Security . | . . . Max Security . | . . . Squads Dispatched 1 | . 1 . Investigation 1 | . 1 . Extermination . | . . . Reinforcement . | . . . Assault . | . . . Garrison . | . . . Intercept . | . . . Searches Triggered . | . . . Construction Impeded . | . . . Haulers Reinforced . | . . . Active Scanning Responses . | . . . Cargo Convoy Interrupts . | . . . Stealth | -11 -10 -9 --------- Run | Yrd Mat Mat Distress Signals 2 | . 1 1 Communications Jammed . | . . . Distress Signals . | . . . Times Spotted 18 | . 9 9 Peak Tracking Total 4 | . 4 2 Tactical Retreats . | . . . Traps | -11 -10 -9 ------- Run | Yrd Mat Mat Traps Triggered 2 | . 1 1 Indirectly . | . . . Trap Hack Attempts . | . . . Triggered . | . . . Disarmed . | . . . Reprogrammed . | . . . Reused . | . . . Traps Extracted . | . . . Installed . | . . . Triggered . | . . . Machines | -11 -10 -9 ---------- Run | Yrd Mat Mat Machines Disabled 2 | . 1 1 Max in Single Turn 1 | . 1 1 Machines Repaired . | . . . Machines Dismantled . | . . . Machines Sabotaged . | . . . Overloaded Fab Kills . | . . . Hacking | -11 -10 -9 --------- Run | Yrd Mat Mat Machines Accessed 4 | . 3 1 Terminals 3 | . 3 . Fabricators . | . . . Repair Stations . | . . . Recycling Units 1 | . . 1 Scanalyzers . | . . . Garrison Access . | . . . Total Hacks 10 | . 6 4 Successful 5 | . 2 3 Failed 5 | . 4 1 Catastrophic 1 | . 1 . Database Lockouts . | . . . Manual . | . . . Terminals 6 | . 6 . Fabricators . | . . . Repair Stations . | . . . Recycling Units 4 | . . 4 Scanalyzers . | . . . Garrison Access . | . . . Terminal Hacks 2 | . 2 . Alert Level 1 | . 1 . Hauler Manifests 1 | . 1 . Fabricator Hacks . | . . . Repair Station Hacks . | . . . Recycling Unit Hacks 3 | . . 3 Recycle Component 1 | . . 1 Process 1 | . . 1 Retrieve Matter 1 | . . 1 Scanalyzer . | . . . Garrison Access Hacks . | . . . Unauthorized Hacks . | . . . Terminals . | . . . Fabricators . | . . . Repair Stations . | . . . Recycling Units . | . . . Scanalyzers . | . . . Garrison Access . | . . . Data Cores Recovered . | . . . Used . | . . . Hacking Detections 3 | . 2 1 Full Trace Events 1 | . 1 . Feedback Events . | . . . Feedback Blocked . | . . . Robot Schematics Acquired . | . . . Robots Built . | . . . Authchips . | . . . Time . | . . . Total Robot Build Rating . | . . . Part Schematics Acquired . | . . . Parts Built . | . . . Authchips . | . . . Time . | . . . Total Part Build Rating . | . . . Parts Repaired . | . . . Time . | . . . Parts Recycled 1 | . . 1 Recycled Matter 108 | . . 108 Retrieved Matter 108 | . . 108 Retrieved Components . | . . . Parts Scanalyzed . | . . . Part Schematics Acquired . | . . . Parts Damaged . | . . . Bothacking | -11 -10 -9 ------------ Run | Yrd Mat Mat Used RIF Installer . | . . . Robots Hacked . | . . . Non-combat . | . . . Combat . | . . . Robot Hacks Applied . | . . . Relay Couplers Released . | . . . Fabnet Peak Effective % . | . . . Robots Rewired . | . . . Allies Hacked . | . . . Hacks Repelled . | . . . Allies | -11 -10 -9 -------- Run | Yrd Mat Mat Total Allies . | . . . Largest Group . | . . . Highest-Rated Group . | . . . Highest-Rated Ally . | . . . Total Orders . | . . . Ally Attacks . | . . . Total Damage . | . . . Kills . | . . . Allies Corrupted . | . . . Allies Melted . | . . . Intel | -11 -10 -9 ------- Run | Yrd Mat Mat Robot Analysis Total . | . . . Derelict Logs Recovered . | . . . Drone Launches . | . . . Drone Recoveries . | . . . Exploration | -11 -10 -9 ------------- Run | Yrd Mat Mat Turns Passed 861 | 113 322 426 Spaces Moved 403 | 64 164 175 Core 3 | 3 . . Treads 400 | 61 164 175 Legs . | . . . Wheels . | . . . Hover . | . . . Flight . | . . . Fastest Speed 50 | 50 160 160 Average Speed 159 | 154 160 160 Slowest Speed 160 | 160 160 160 Overloaded Moves . | . . . Propulsion Burnouts . | . . . Robots Hopped . | . . . Cave-ins Triggered . | . . . Exploration Rate (%) 24 | 5 39 28 Regions Visited 2 Branch Regions . Pre-discovered Areas . | . . . Known Exits Taken . | . . . Unknown Exits Taken 2 | 1 1 . Scrap Searched . | . . . Spaces Dug 6 | . . 6 Terrain Destroyed 143 | . 62 81 Melee . | . . . Projectile . | . . . AOE 143 | . 62 81 Terrain Rammed . | . . . Walls Destroyed . | . . . Machines Disabled . | . . . Actions | -11 -10 -9 --------- Run | Yrd Mat Mat Total 553 | 75 189 289 Wait 66 | . 1 65 Move 401 | 63 163 175 Hop . | . . . Pick Up 14 | 6 2 6 Fast Attach 11 | 6 1 4 Attach . | . . . Detach 3 | . . 3 Swap 7 | . 1 6 Drop 6 | . . 6 Fire 38 | . 18 20 Melee . | . . . Ram . | . . . Kick . | . . . Crush 7 | . 3 4 Escape Stasis . | . . . Rewire . | . . . Trap . | . . . Miscellaneous . | . . . Route ------- -11/Scrapyard -10/Materials -9/Materials (discovered 1 exit: [*Mat]) History --------- Turn | Location | Event 4 | -11/Scrapyard | Discovered new exit (range 15) 114 | -11/Scrapyard | Entered Materials 324 | -10/Materials | Build established: Mutant 418 | -10/Materials | Discovered new exit (range 12) 436 | -10/Materials | Entered another Materials area 436 | -9/Materials | Evolved 2 slots: Propulsion x2 841 | -9/Materials | Discovered new exit (range 15) 862 | -9/Materials | Self-destructed Last Messages --------------- U-05 Engineer lays Concrete. R-06 Scavenger collects Hover Unit. U-05 Engineer lays Concrete. U-05 Engineer builds a Wall. U-05 Engineer lays Concrete. U-05 Engineer builds a Wall. U-05 Engineer lays Concrete. U-05 Engineer builds a Wall. U-05 Engineer lays Concrete. U-05 Engineer builds a Wall. U-05 Engineer lays Concrete. U-05 Engineer builds a Wall. U-05 Engineer lays Concrete. U-05 Engineer builds a Wall. U-05 Engineer lays Concrete. EXIT=FOUND Triggered Blade Trap. Massive razor-sharp blades shoot up from within the floor. Grenade Launcher severed. Lgt. Treads severed. Map ----- +----------------------------------------------------+ | | | ???????????????????????????????????????? | | ???????????????????????????????????????? | | ???????????????????????????????????????? | | ???????????????????????????????????????? | | ???????????????????????????????????????? | | ???????????????????????????????????????? | | ???????????????????????????????????????? | | ???????????????????????????????????????? | | ???????????????????????????????????????? | | ???????????????????????????????????????? | | ???????????????????????????????????????? | | ???????????????????????????????????????? | | ???????????????????????????????????????? | | ???????????????????????????????????????? | | ???????????????????????????????????????? | | ???????????????????????????????????????? | | ???????????????????????????????????????? | | ???????????????????????????????????????? | | ???????????????????????????????????????? | | ????????????????????????#####??????????? | | ????????????????????????# #??????????? | | ????????????????????????# < #??????????? | | ????????????????????????# #??????????? | | ????????????????????????# ^#??????????? | | ????????????????????????#@= #??????????? | | ????????????????????????#= #??????????? | | ???????????????????????## ##?????????? | | ???????????????????????# #?????????? | | ???????????????????????# #?????????? | | ???????????????????????# w ???????? | | ???????????????????????# #"" ????? | | ???????????????????????# #"T ??? | | ??????????############### ##?" ] #? | | ??????????# ## #????? ???? | | ??????????# """ ## #??????????? | | ??????????# """ =! ## #??????????? | | ########### """ =! ## #?######???? | | ## !! ## #? ????? | | ## ## ## """"???? | | #### # # # """"???? | | # # """???? | | + / """"???? | | # # """"???? | | ### ######## # """"???? | | #?############## ## """"" #? | | ##################????# # # #? | | ???????# #????# # # ########?? | | ???????# """ """ ######## # #????????? | | ???????# "Y" """ # # #????????? | +----------------------------------------------------+ Best States ------------- Heat Dissipation 28 Energy Generation 12 Energy Capacity 265 Matter Stores 221 Matter Capacity 300 Sight Range 16 Terrain Scan Range 16 Terrain Scan Density 10 Evasion (%) 40 Recoil Reduction 4 Item Schematics ----------------- None Robot Schematics ------------------ None Fabricated ------------ Nothing Alien Tech Used ----------------- None Achievements -------------- None Challenges ------------ None Game ------ Seed SpliceDataSaw Manual? 0 Play Time 00:13:20 Cumulative 4.4 hours Start 2024.04.07 @ 20:24:38 End 2024.04.07 @ 20:38:21 Sessions 1 Manual Loads 0 Difficulty Rogue Special Mode None Game No. 10 Rogue 10 Adventurer 0 Explorer 0 Win Type - Total 0 Types 0/0/0/0/0/0/0/0/0 Lore% 13 Gallery% 7 Achievement% 11 Wizard Run 0 Options --------- Layout 0 ASCII 0 Keyboard 1 Movement Numpad Keybinds 0 Fullscreen 1 Font 18/SmallcapsGlow Map View 76x50 Zoom Use 0% Tactical HUD 0 Map Filters NONE Filters NONE Steam 1 RUN: 6aa94d0f-eb48-45ba-9851-11c641aa0731